lending/lending_fUSD_20260223
["ID","MTS","AMOUNT","RATE_DAILY","PERIOD"]
[406367352,1771811262449,12246.91,0.00014701,2]
[406367365,1771811348825,191.66,0.00010972,2]
[406367366,1771811349041,191.66,0.000128,2]
[406367367,1771811349265,191.66,0.00014629,2]
[406367414,1771811431898,-300.0,0.00015205,2]
[406367416,1771811431908,-1200.0,0.00015205,2]
[406367418,1771811431918,-276.0,0.00015206,2]
[406367419,1771811431927,-13267.76040531,0.00015206,2]
[406367422,1771811431939,-612.51,0.00015206,2]
[406367424,1771811431952,-675.352,0.00015206,2]
[406367440,1771811432457,-4207.08330326,0.00015206,2]
[406367441,1771811432468,-592.36206145,0.00015206,2]
[406367442,1771811432480,-1508.00158104,0.00015206,2]
[406367443,1771811432491,-31058.47234894,0.00015206,2]
[406367444,1771811432500,-205.57529524,0.00015224,2]
[406367445,1771811432510,-424.5062661,0.00015224,2]
[406367446,1771811432519,-310.7410618,0.00015224,2]
[406367447,1771811432528,-3771.66575367,0.00015251,2]
[406367448,1771811432538,-311.0,0.00015288,2]
[406367449,1771811432547,-300.0,0.00015304,2]
[406367450,1771811432557,-500.0,0.00015305,2]
[406367451,1771811432566,-500.0,0.00015305,2]
[406367452,1771811432576,-432.597798,0.00015305,2]
[406367453,1771811432585,-705261.67630373,0.00015306,2]
[406367454,1771811432597,-43419.57035997,0.00015306,2]
[406367462,1771811437906,-4373.57291614,0.00015306,2]
[406367463,1771811437962,-816.38379,0.00015306,2]
[406367464,1771811437975,-66749.43375105,0.00015306,2]
[406367470,1771811438410,-9563.03429656,0.00015306,2]
[406367471,1771811438441,-545.15798766,0.00015306,2]
[406367473,1771811440088,-1955.065,0.00015306,2]
[406367474,1771811440143,-2400.83516378,0.00015306,2]
[406367475,1771811440155,-2664915.27043111,0.00015306,2]
[406367476,1771811440164,-3240.0,0.00015324,2]
[406367477,1771811440173,-195.0,0.00015351,2]
[406367478,1771811440183,-1505.00420978,0.00015351,2]
[406367479,1771811440192,-195.0,0.0001538,2]
[406367480,1771811440202,-10033.48680941,0.00015396,2]
[406367481,1771811440211,-202.17560334,0.00015397,2]
[406367482,1771811440220,-505.7870635,0.00015397,2]
[406367483,1771811440229,-199.05044866,0.00015399,2]
[406367484,1771811440238,-253.83348108,0.00015401,2]
[406367485,1771811440251,-3740.7094446,0.00015407,2]
[406367486,1771811440260,-104103.5790551,0.00015407,2]
[406367487,1771811440269,-999.99,0.00015505,2]
[406367488,1771811440278,-9999.99,0.00015505,2]
[406367489,1771811440287,-9999.99,0.00015505,2]
[406367490,1771811440296,-3493.84,0.00015505,2]
[406367491,1771811440306,-150.99,0.00015506,2]
[406367492,1771811440315,-509.08,0.00015506,2]
[406367493,1771811440324,-150.0,0.00015531,2]
[406367494,1771811440334,-3771.66575364,0.00015545,2]
[406367495,1771811440342,-500.0,0.00015599,2]
[406367496,1771811440352,-500.0,0.00015599,2]
[406367497,1771811440361,-500.0,0.00015599,2]
[406367498,1771811440370,-500.0,0.00015599,2]
[406367499,1771811440379,-483.71280667,0.00015599,2]
[406367500,1771811440388,-500.0,0.00015599,2]
[406367501,1771811440397,-500.0,0.00015599,2]
[406367502,1771811440406,-500.0,0.00015599,2]
[406367503,1771811440416,-500.0,0.00015599,2]
[406367504,1771811440425,-500.0,0.00015599,2]
[406367505,1771811440436,-508.31602971,0.00015599,2]
[406367506,1771811440445,-500.0,0.00015599,2]
[406367507,1771811440455,-500.0,0.00015599,2]
[406367508,1771811440465,-363.06949675,0.00015599,2]
[406367509,1771811440474,-500.0,0.00015599,2]
[406367510,1771811440483,-500.0,0.00015599,2]
[406367511,1771811440492,-500.0,0.00015599,2]
[406367512,1771811440502,-500.0,0.00015599,2]
[406367513,1771811440511,-500.0,0.00015599,2]
[406367514,1771811440520,-500.0,0.00015599,2]
[406367515,1771811440529,-500.0,0.00015599,2]
[406367516,1771811440538,-500.0,0.00015599,2]
[406367517,1771811440547,-500.0,0.00015599,2]
[406367518,1771811440556,-500.0,0.00015599,2]
[406367519,1771811440565,-500.0,0.00015599,2]
[406367520,1771811440574,-500.0,0.00015599,2]
[406367521,1771811440584,-528.68509092,0.00015599,2]
[406367522,1771811440593,-500.0,0.00015599,2]
[406367523,1771811440603,-500.0,0.00015599,2]
[406367524,1771811440615,-500.0,0.00015599,2]
[406367525,1771811440624,-272.00194636,0.00015599,2]
[406367527,1771811440635,-500.0,0.00015599,2]
[406367528,1771811440645,-500.0,0.00015599,2]
[406367529,1771811440654,-500.0,0.00015599,2]
[406367530,1771811440663,-500.0,0.00015599,2]
[406367531,1771811440673,-500.0,0.00015599,2]
[406367532,1771811440682,-515.90115332,0.00015599,2]
[406367533,1771811440693,-500.0,0.00015599,2]
[406367534,1771811440703,-500.0,0.00015599,2]
[406367535,1771811440712,-511.04434224,0.00015599,2]
[406367536,1771811440722,-500.0,0.00015599,2]
[406367537,1771811440731,-500.0,0.00015599,2]
[406367538,1771811440740,-500.0,0.00015599,2]
[406367539,1771811440749,-500.0,0.00015599,2]
[406367540,1771811440758,-504.96991736,0.00015599,2]
[406367541,1771811440768,-529.74271627,0.00015599,2]
[406367542,1771811440777,-512.03029009,0.00015599,2]
[406367543,1771811440787,-500.0,0.00015599,2]
[406367544,1771811440796,-500.0,0.00015599,2]
[406367545,1771811440805,-500.0,0.00015599,2]
[406367546,1771811440814,-500.0,0.00015599,2]
[406367547,1771811440823,-500.0,0.00015599,2]
[406367548,1771811440832,-500.0,0.00015599,2]
[406367549,1771811440841,-500.0,0.00015599,2]
[406367550,1771811440850,-500.0,0.00015599,2]
[406367551,1771811440859,-500.0,0.00015599,2]
[406367552,1771811440868,-507.85211322,0.00015599,2]
[406367553,1771811440877,-500.0,0.00015599,2]
[406367554,1771811440890,-500.0,0.00015599,2]
[406367555,1771811440899,-302.22,0.00015599,2]
[406367556,1771811440908,-507.77147177,0.00015599,2]
[406367557,1771811440917,-515.11112842,0.00015599,2]
[406367558,1771811440926,-511.75502785,0.00015599,2]
[406367559,1771811440936,-242.45800561,0.0001574,2]
[406367560,1771811440946,-424.50626609,0.00015759,2]
[406367561,1771811440955,-1000.0,0.00015821,2]
[406367562,1771811440964,-3771.66575364,0.0001584,2]
[406367563,1771811440973,-362.08661635,0.00015873,2]
[406367564,1771811440982,-302.22,0.00015873,2]
[406367565,1771811440991,-1143.12664617,0.00016023,2]
[406367566,1771811441000,-500.0,0.00016089,2]
[406367567,1771811441010,-500.0,0.00016089,2]
[406367568,1771811441019,-500.0,0.00016089,2]
[406367569,1771811441028,-516.92309822,0.00016089,2]
[406367570,1771811441037,-3771.66575364,0.00016134,2]
[406367571,1771811441046,-302.22,0.00016147,2]
[406367572,1771811441055,-424.50626609,0.00016294,2]
[406367573,1771811441064,-302.22,0.00016421,2]
[406367574,1771811441073,-3771.66575364,0.00016428,2]
[406367575,1771811441082,-310.74106178,0.00016562,2]
[406367576,1771811441091,-213.0,0.00016638,2]
[406367577,1771811441100,-302.25408674,0.00016695,2]
[406367578,1771811441109,-25000.0,0.00016705,2]
[406367579,1771811441119,-1680.0,0.00016722,2]
[406367580,1771811441128,-3771.66575364,0.00016723,2]
[406367581,1771811441138,-420.0,0.00016744,2]
[406367582,1771811441148,-300.0,0.00016746,2]
[406367583,1771811441157,-250.0,0.00016746,2]
[406367584,1771811441167,-424.50626609,0.0001683,2]
[406367585,1771811441177,-303.06987021,0.00016837,2]
[406367586,1771811441187,-195.0,0.00016837,2]
[406367587,1771811441196,-5000.0,0.00016837,2]
[406367588,1771811441206,-600.0,0.00016837,2]
[406367589,1771811441216,-300.31783237,0.00016837,2]
[406367590,1771811441225,-250.0,0.00016936,2]
[406367591,1771811441234,-195.0,0.00016936,2]
[406367592,1771811441244,-300.0,0.00017,2]
[406367593,1771811441254,-160.38,0.00017016,2]
[406367594,1771811441264,-3771.66575364,0.00017017,2]
[406367595,1771811441273,-327512.2073,0.00017092,2]
[406367596,1771811441283,-36419.716951,0.00017191,2]
[406367597,1771811441293,-3771.66575364,0.00017311,2]
[406367598,1771811441303,-9217.1859901,0.00017344,2]
[406367599,1771811441312,-424.50626609,0.00017365,2]
[406367600,1771811441322,-834.6650974,0.00017387,2]
[406367601,1771811441331,-23228.6482665,0.00017428,2]
[406367602,1771811441341,-3771.66575364,0.00017606,2]
[406367603,1771811441350,-9217.1859901,0.00017622,2]
[406367604,1771811441360,-168.0,0.00017684,2]
[406367605,1771811441369,-1000.0,0.00017799,2]
[406367606,1771811441379,-1132.1955678,0.00017808,2]
[406367607,1771811441388,-1132.1955678,0.00017808,2]
[406367608,1771811441408,-1132.1955678,0.00017808,2]
[406367609,1771811441418,-1132.1955678,0.00017808,2]
[406367610,1771811441428,-1132.1955678,0.00017808,2]
[406367611,1771811441438,-1132.1955678,0.00017808,2]
[406367612,1771811441448,-1132.1955678,0.00017808,2]
[406367613,1771811441458,-1132.1955678,0.00017808,2]
[406367614,1771811441467,-1132.1955678,0.00017808,2]
[406367615,1771811441477,-1132.1955678,0.00017808,2]
[406367616,1771811441487,-1132.1955678,0.00017808,2]
[406367617,1771811441497,-1132.1955678,0.00017808,2]
[406367618,1771811441506,-1132.1955678,0.00017808,2]
[406367619,1771811441516,-1132.1955678,0.00017808,2]
[406367620,1771811441525,-1132.1955678,0.00017808,2]
[406367621,1771811441535,-1132.1955678,0.00017808,2]
[406367622,1771811441545,-1132.1955678,0.00017808,2]
[406367623,1771811441554,-1132.1955678,0.00017808,2]
[406367624,1771811441564,-1132.1955678,0.00017808,2]
[406367625,1771811441573,-1132.1955678,0.00017808,2]
[406367626,1771811441583,-1132.1955678,0.00017808,2]
[406367627,1771811441593,-1132.1955678,0.00017808,2]
[406367628,1771811441605,-1261.589347,0.00017808,2]
[406367629,1771811441614,-1261.589347,0.00017808,2]
[406367630,1771811441624,-1261.589347,0.00017808,2]
[406367631,1771811441635,-1261.589347,0.00017808,2]
[406367632,1771811441644,-1261.589347,0.00017808,2]
[406367633,1771811441653,-1261.589347,0.00017808,2]
[406367634,1771811441663,-1261.589347,0.00017808,2]
[406367635,1771811441672,-186.2389568,0.00017828,2]
[406367636,1771811441683,-5183.0120077,0.00017879,2]
[406367637,1771811441694,-1000.0,0.000179,2]
[406367638,1771811441704,-9217.1859901,0.000179,2]
[406367639,1771811441713,-3771.66575364,0.000179,2]
[406367640,1771811441722,-424.50626609,0.000179,2]
[406367641,1771811441732,-310.74106178,0.000179,2]
[406367642,1771811441742,-168.0,0.00017907,2]
[406367643,1771811441751,-200.0,0.00017937,2]
[406367644,1771811441761,-373.61,0.00017968,2]
[406367645,1771811441770,-636.89416878,0.00017973,2]
[406367646,1771811441780,-206.78678344,0.00017973,2]
[406367647,1771811441789,-502.95920564,0.00017973,2]
[406367648,1771811441799,-502.70722685,0.00017973,2]
[406367649,1771811441808,-500.0,0.00017973,2]
[406367650,1771811441817,-428.8363685,0.00017973,2]
[406367651,1771811441827,-500.0,0.00017973,2]
[406367652,1771811441836,-163.68591342,0.00017973,2]
[406367653,1771811441847,-500.0,0.00017973,2]
[406367654,1771811441856,-505.8881833,0.00017973,2]
[406367655,1771811441866,-166.93357702,0.00017973,2]
[406367656,1771811441875,-500.0,0.00017973,2]
[406367657,1771811441884,-502.54598261,0.00017973,2]
[406367658,1771811441894,-500.71657601,0.00017973,2]
[406367659,1771811441903,-1758.1117051,0.00017999,5]
[406367660,1771811441912,-500.0,0.00017999,2]
[406367661,1771811441922,-500.0,0.00017999,2]
[406367662,1771811441931,-500.0,0.00017999,2]
[406367663,1771811441945,-500.0,0.00017999,2]
[406367664,1771811441954,-500.0,0.00017999,2]
[406367665,1771811441963,-500.0,0.00017999,2]
[406367666,1771811441973,-500.0,0.00017999,2]
[406367667,1771811441983,-517.46419369,0.00017999,2]
[406367668,1771811441994,-628507.77465457,0.00018,2]
[406367669,1771811442021,-310556.86463654,0.00018,2]
[406367670,1771811442033,-812.49935,0.00018,2]
[406367671,1771811442044,-1683.5,0.00018,2]
[406367672,1771811442059,-725.14125703,0.00018,2]
[406367703,1771811443178,-3516.41674119,0.00018,2]
[406367704,1771811443282,-1976.29691762,0.00018,2]
[406367705,1771811443336,-290.89245845,0.00018,2]
[406367728,1771811444171,-18306.35458658,0.00018,2]
[406367729,1771811444183,-845.71741582,0.00018,2]
[406367730,1771811444198,-710.61191828,0.00018,2]
[406367742,1771811445836,-1931.26341503,0.00018,2]
[406367743,1771811445847,-812.8125,0.00018,2]
[406367744,1771811445858,-5054.67,0.00018,2]
[406367745,1771811445869,-572.01969778,0.00018,2]
[406367746,1771811445880,-1893.12,0.00018,2]
[406367747,1771811445891,-4061.12752277,0.00018,2]
[406367748,1771811445902,-343989.88989906,0.00018,2]
[406367749,1771811445913,-1636.33892134,0.00018,2]
[406367750,1771811446055,-16921.66706373,0.00018,2]
[406367751,1771811446109,-134118.55124498,0.00018,2]
[406367752,1771811446121,-3264.5996,0.00018,2]
[406367753,1771811446164,-754.70550725,0.00018,2]
[406367758,1771811498075,964.398,0.00014902,2]
[406367759,1771811541133,500.0,0.0001321,2]
[406367760,1771811542076,500.0,0.0001321,2]
[406367761,1771811542655,500.0,0.000108,2]
[406367762,1771811543162,995.95928282,0.000108,2]
[406367763,1771811550524,500.3050713,0.0001321,2]
[406367764,1771811845479,500.0,0.0001321,2]
[406367765,1771811858045,-207.16070786,0.00015085,2]
[406367766,1771811858071,-353.75522175,0.00015085,2]
[406367767,1771811858097,-213.0,0.00015105,2]
[406367768,1771811858122,-1200.0,0.00015105,2]
[406367769,1771811858147,-4227.98783095,0.00015106,2]
[406367770,1771811858176,-178.81052785,0.00015106,2]
[406367771,1771811858204,-18619.28571159,0.00015106,2]
[406367772,1771811921488,150.0,0.0001481,2]
[406367773,1771811955596,5813.84,0.00015001,2]
[406367774,1771811963973,2881.93,0.00014643,2]
[406367775,1771811967270,166.66,0.00013911,2]
[406367776,1771811967491,166.66,0.00014204,2]
[406367777,1771811967686,166.66,0.00014496,2]
[406367778,1771811967910,166.66,0.00014789,2]
[406367779,1771811982330,936.6,0.00015001,2]
[406367780,1771811994722,197.102023,0.00014445,7]
[406367781,1771812016062,461.07378055,0.00015,2]
[406367782,1771812055176,199.53,0.00015,2]
[406367784,1771812072952,150.0,0.00014441,2]
[406367785,1771812076816,160.8591,0.00014905,2]
[406367786,1771812076988,3419.42,0.00014441,2]
[406367787,1771812108254,15766.29041325,0.00015,2]
[406367792,1771812136120,294.79601815,0.00014906,2]
[406367794,1771812187995,484.6069306,0.00014906,2]
[406367795,1771812214723,245.66334845,0.00014906,2]
[406367796,1771812264633,13750.14305798,0.00014906,2]
[406367797,1771812270542,2645.42,0.00014435,2]
[406367798,1771812291157,1284.12,0.00014395,2]
[406367799,1771812298007,442.4,0.00014395,2]
[406367800,1771812319107,168.84,0.00011548,2]
[406367801,1771812324951,1500.0,0.00014435,2]
[406367802,1771812364146,10033.48680941,0.00014996,2]
[406367803,1771812416887,1482518.11202722,0.00014906,2]
[406367804,1771812416909,9500.0,0.00014906,2]
[406367805,1771812416937,25000.0,0.00014906,2]
[406367845,1771812632163,-1414.99,0.00014144,2]
[406367846,1771812632173,-267.0,0.00014144,2]
[406367847,1771812632183,-259.25,0.00014199,2]
[406367848,1771812632192,-250.0,0.00014502,2]
[406367849,1771812632202,-424.03106424,0.00014806,2]
[406367850,1771812632211,-204.71945705,0.00014806,2]
[406367851,1771812632221,-3805.1890479,0.00014903,2]
[406367852,1771812632231,-151.0,0.00014903,2]
[406367853,1771812632240,-300.0,0.00014904,2]
[406367854,1771812632250,-1200.0,0.00014904,2]
[406367855,1771812632259,-1060683.49471127,0.00014906,2]
[406367857,1771812632271,-34507.47610469,0.00014906,2]
[406367859,1771812632282,-644.83,0.00014906,2]
[406367861,1771812632293,-2538.93798931,0.00014906,2]
[406367909,1771812638142,-13385.07568456,0.00014906,2]
[406367910,1771812638153,-17585.3958712,0.00014906,2]
[406367911,1771812638166,-528403.44893039,0.00014906,2]
[406367912,1771812638302,-14161.79383668,0.00014906,2]
[406367913,1771812638314,-1634.19576043,0.00014906,2]
[406367914,1771812638326,-3855.85335892,0.00014906,2]
[406367919,1771812640205,-844.68784259,0.00014906,2]
[406367920,1771812640260,-304736.69788274,0.00014906,2]
[406367921,1771812640269,-2500.0,0.00014906,2]
[406367922,1771812640279,-1237.1,0.00014907,2]
[406367923,1771812640288,-259.25,0.00014909,2]
[406367924,1771812640297,-505.7870635,0.00014997,2]
[406367925,1771812640306,-202.17560334,0.00014997,2]
[406367926,1771812640315,-299.3,0.00015,2]
[406367927,1771812640325,-199.05044866,0.00015003,2]
[406367928,1771812640335,-303.06987021,0.00015003,2]
[406367929,1771812640344,-9999.99,0.00015056,2]
[406367930,1771812640353,-999.99,0.00015056,2]
[406367931,1771812640363,-150.99,0.00015056,2]
[406367932,1771812640372,-9999.99,0.00015056,2]
[406367933,1771812640381,-1205.06,0.00015056,2]
[406367934,1771812640391,-3493.84,0.00015056,2]
[406367935,1771812640400,-150.99,0.00015056,2]
[406367936,1771812640410,-509.08,0.00015056,2]
[406367937,1771812640420,-166.66,0.00015082,2]
[406367938,1771812640430,-1100.266,0.00015103,2]
[406367939,1771812640439,-187.378,0.00015103,2]
[406367940,1771812640449,-500.0,0.00015105,2]
[406367941,1771812640459,-500.0,0.00015105,2]
[406367942,1771812640469,-500.0,0.00015105,2]
[406367943,1771812640478,-500.0,0.00015105,2]
[406367944,1771812640487,-500.0,0.00015105,2]
[406367945,1771812640496,-500.0,0.00015105,2]
[406367946,1771812640505,-508.31602971,0.00015105,2]
[406367947,1771812640515,-500.0,0.00015105,2]
[406367948,1771812640524,-500.0,0.00015105,2]
[406367949,1771812640533,-363.06949675,0.00015105,2]
[406367950,1771812640543,-500.0,0.00015105,2]
[406367951,1771812640551,-500.0,0.00015105,2]
[406367952,1771812640561,-500.0,0.00015105,2]
[406367953,1771812640570,-483.71280667,0.00015105,2]
[406367954,1771812640579,-500.0,0.00015105,2]
[406367955,1771812640588,-500.0,0.00015105,2]
[406367956,1771812640598,-500.0,0.00015105,2]
[406367957,1771812640607,-272.00194636,0.00015105,2]
[406367958,1771812640616,-500.0,0.00015105,2]
[406367959,1771812640625,-500.0,0.00015105,2]
[406367960,1771812640635,-500.0,0.00015105,2]
[406367961,1771812640644,-500.0,0.00015105,2]
[406367962,1771812640653,-500.0,0.00015105,2]
[406367963,1771812640662,-515.90115332,0.00015105,2]
[406367964,1771812640671,-500.0,0.00015105,2]
[406367965,1771812640680,-500.0,0.00015105,2]
[406367966,1771812640690,-511.04434224,0.00015105,2]
[406367967,1771812640699,-1293.43091677,0.00015179,2]
[406367968,1771812640708,-151.0,0.00015203,2]
[406367969,1771812640717,-1758.1117051,0.00015205,5]
[406367970,1771812640726,-1000.0,0.00015206,2]
[406367971,1771812640736,-354041.5108,0.00015206,2]
[406367972,1771812640745,-540.0,0.0001521,2]
[406367973,1771812640754,-3805.18904782,0.00015236,2]
[406367974,1771812640763,-761.0,0.00015258,2]
[406367975,1771812640772,-500.0,0.00015305,2]
[406367976,1771812640781,-500.0,0.00015305,2]
[406367977,1771812640790,-500.0,0.00015305,2]
[406367978,1771812640799,-500.0,0.00015305,2]
[406367979,1771812640808,-500.0,0.00015305,2]
[406367980,1771812640817,-500.0,0.00015305,2]
[406367981,1771812640827,-500.0,0.00015305,2]
[406367982,1771812640836,-500.0,0.00015305,2]
[406367983,1771812640845,-500.0,0.00015305,2]
[406367984,1771812640854,-500.0,0.00015305,2]
[406367985,1771812640863,-500.0,0.00015305,2]
[406367987,1771812640872,-500.0,0.00015305,2]
[406367990,1771812640881,-517.46419369,0.00015305,2]
[406367992,1771812640890,-500.0,0.00015305,2]
[406367994,1771812640899,-500.0,0.00015305,2]
[406367996,1771812640908,-500.0,0.00015305,2]
[406367998,1771812640918,-500.0,0.00015305,2]
[406367999,1771812640927,-500.0,0.00015305,2]
[406368001,1771812640936,-500.0,0.00015305,2]
[406368003,1771812640945,-500.0,0.00015305,2]
[406368005,1771812640954,-500.0,0.00015305,2]
[406368006,1771812640962,-500.0,0.00015305,2]
[406368007,1771812640971,-500.0,0.00015305,2]
[406368008,1771812640979,-528.68509092,0.00015305,2]
[406368010,1771812640989,-500.0,0.00015305,2]
[406368012,1771812641002,-500.0,0.00015305,2]
[406368014,1771812641011,-516.92309822,0.00015305,2]
[406368016,1771812641022,-1852.42,0.00015355,2]
[406368018,1771812641031,-166.66,0.00015375,2]
[406368020,1771812641040,-500.0,0.00015379,2]
[406368022,1771812641049,-529.74271627,0.00015405,2]
[406368024,1771812641058,-500.0,0.00015405,2]
[406368026,1771812641067,-500.0,0.00015405,2]
[406368027,1771812641076,-500.0,0.00015405,2]
[406368028,1771812641085,-500.0,0.00015405,2]
[406368029,1771812641094,-504.96991736,0.00015405,2]
[406368030,1771812641103,-500.0,0.00015405,2]
[406368031,1771812641112,-500.0,0.00015405,2]
[406368032,1771812641121,-500.0,0.00015405,2]
[406368033,1771812641130,-500.0,0.00015405,2]
[406368034,1771812641139,-500.0,0.00015405,2]
[406368035,1771812641148,-500.0,0.00015405,2]
[406368036,1771812641157,-500.0,0.00015405,2]
[406368037,1771812641167,-500.0,0.00015405,2]
[406368038,1771812641176,-500.0,0.00015405,2]
[406368039,1771812641185,-507.85211322,0.00015405,2]
[406368040,1771812641195,-512.03029009,0.00015405,2]
[406368041,1771812641204,-507.77147177,0.00015405,2]
[406368042,1771812641213,-515.11112842,0.00015405,2]
[406368043,1771812641223,-511.75502785,0.00015405,2]
[406368044,1771812641232,-242.45800561,0.00015417,2]
[406368045,1771812641241,-190.41,0.00015466,2]
[406368046,1771812641251,-250.0,0.00015558,2]
[406368047,1771812641261,-195.0,0.00015558,2]
[406368048,1771812641271,-3805.18904782,0.00015569,2]
[406368049,1771812641280,-195.0,0.00015619,2]
[406368050,1771812641290,-250.0,0.00015619,2]
[406368051,1771812641299,-259.25,0.00015619,2]
[406368052,1771812641308,-6626.66454919,0.0001563,2]
[406368053,1771812641318,-362.08661635,0.00015653,2]
[406368054,1771812641327,-1016.88,0.00015712,2]
[406368055,1771812641337,-500.0,0.00015759,2]
[406368056,1771812641346,-265.33,0.00015778,2]
[406368057,1771812641356,-3805.18904782,0.00015902,2]
[406368058,1771812641366,-3805.18904782,0.00016235,2]
[406368059,1771812641375,-195.0,0.00016287,2]
[406368060,1771812641385,-420.0,0.00016313,2]
[406368061,1771812641394,-259.25,0.00016329,2]
[406368062,1771812641404,-1680.0,0.00016394,2]
[406368063,1771812641415,-417.20013387,0.000165,2]
[406368064,1771812641425,-195.0,0.00016503,2]
[406368065,1771812641434,-300.0,0.00016503,2]
[406368066,1771812641444,-3805.18904782,0.00016568,2]
[406368067,1771812641454,-3805.18904782,0.00016901,2]
[406368068,1771812641463,-259.25,0.00017039,2]
[406368069,1771812641473,-3805.18904782,0.00017234,2]
[406368070,1771812641482,-168.0,0.00017532,2]
[406368071,1771812641492,-3805.18904782,0.00017567,2]
[406368072,1771812641501,-1016.88,0.00017675,2]
[406368073,1771812641511,-250.0,0.00017707,2]
[406368074,1771812641520,-587.0,0.00017856,2]
[406368075,1771812641530,-3805.18904782,0.000179,2]
[406368076,1771812641539,-200.0,0.00017937,2]
[406368077,1771812641549,-212.21,0.00017946,2]
[406368078,1771812641559,-1112.8120653,0.00017952,2]
[406368079,1771812641569,-57222.4432746,0.00017952,2]
[406368080,1771812641579,-413.59,0.0001797,2]
[406368081,1771812641588,-502.70722685,0.00017973,2]
[406368082,1771812641598,-617.34616089,0.00017973,2]
[406368083,1771812641607,-636.89416878,0.00017973,2]
[406368084,1771812641618,-502.95920564,0.00017973,2]
[406368085,1771812641627,-206.78678344,0.00017973,2]
[406368086,1771812641638,-500.0,0.00017973,2]
[406368087,1771812641648,-505.8881833,0.00017973,2]
[406368088,1771812641658,-163.68591342,0.00017973,2]
[406368089,1771812641670,-428.8363685,0.00017973,2]
[406368090,1771812641680,-500.0,0.00017973,2]
[406368091,1771812641690,-500.0,0.00017973,2]
[406368092,1771812641699,-500.0,0.00017973,2]
[406368093,1771812641709,-166.93357702,0.00017973,2]
[406368094,1771812641719,-502.54598261,0.00017973,2]
[406368095,1771812641728,-500.71657601,0.00017973,2]
[406368096,1771812641738,-151.0,0.00017997,2]
[406368097,1771812641750,-154.26952397,0.00017997,2]
[406368098,1771812641760,-28245.05186352,0.00018,2]
[406368099,1771812641770,-474576.17332566,0.00018,2]
[406368100,1771812641797,-1938.55968,0.00018,2]
[406368101,1771812641809,-53682.72883876,0.00018,2]
[406368102,1771812641824,-2110.13501,0.00018,2]
[406368110,1771812643319,-683.19182074,0.00015188,2]
[406368111,1771812643329,-5746.80817926,0.00018,2]
[406368112,1771812643566,-1577.34738338,0.00018,2]
[406368113,1771812643578,-384204.33458841,0.00018,2]
[406368114,1771812643619,-1815.74938873,0.00018,2]
[406368115,1771812643631,-1650.0,0.00018,2]
[406368116,1771812643642,-1012.85738933,0.00018,2]
[406368117,1771812643653,-998.9063611,0.00018,2]
[406368118,1771812643663,-11464.46976567,0.00018,2]
[406368119,1771812643675,-9384.62838452,0.00018,2]
[406368120,1771812643686,-6456.76566377,0.00018,2]
[406368121,1771812643697,-9219.2,0.00018,2]
[406368122,1771812643708,-2833.845,0.00018,2]
[406368133,1771812646004,-12678.21375174,0.00018,2]
[406368137,1771812646055,-558301.54600239,0.00018,2]
[406368138,1771812646068,-18526.6126803,0.00018,2]
[406368139,1771812646081,-808.00460389,0.00018,2]
[406368140,1771812646092,-904.64662748,0.00018,2]
[406368141,1771812646230,-3229.4476,0.00018,2]
[406368142,1771812646242,-1220.78000198,0.00018,2]
[406368143,1771812646254,-479.60803633,0.00018,2]
[406368144,1771812646296,-9336.96227502,0.00018,2]
[406368145,1771812646308,-3024.30933242,0.00018,2]
[406368146,1771812646318,-129428.00517527,0.00018,2]
[406368147,1771812646329,-93347.1939985,0.00018,2]
[406368148,1771812646356,-11277.81555068,0.00018,2]